bitfinex/quotes_SOLUSD_20240916
["timestamp","ask_amount","ask_price","bid_price","bid_amount"]
[1726445311888,6.8156,132.05,131.98,23.776884]
[1726445317812,6.8156,132.05,131.98,42.30424439]
[1726445321815,16.0787,132.06,132.0,18.52736039]
[1726445322033,16.0787,132.06,132.01,42.30424439]
[1726445322211,16.0787,132.06,132.0,23.776884]
[1726445322408,16.0787,132.06,132.0,43.776884]
[1726445322933,16.0787,132.06,131.98,43.776884]
[1726445323346,6.816,132.05,131.98,43.776884]
[1726445323505,6.816,132.05,131.98,23.776884]
[1726445324407,6.8162,132.04,131.98,23.776884]
[1726445324609,15.918,132.03,131.98,23.776884]
[1726445324810,15.918,132.03,131.97,43.776884]
[1726445325438,15.918,132.03,131.97,62.30424439]
[1726445325624,15.918,132.03,131.98,18.52736039]
[1726445327206,15.918,132.03,131.97,43.776884]
[1726445327409,6.8187,131.99,131.96,0.2537109]
[1726445327614,15.2761,132.01,131.96,0.2537109]
[1726445328421,22.0942,132.01,131.96,0.2537109]
[1726445330109,6.8189,131.99,131.96,0.2537109]
[1726445330617,6.8182,132.0,131.96,0.2537109]
[1726445330828,15.2761,132.01,131.96,0.2537109]
[1726445330829,6.8192,131.98,131.96,0.2537109]
[1726445331140,15.2761,132.01,131.92,20.2537109]
[1726445331141,21.8724,131.97,131.92,0.2537109]
[1726445331448,15.7344,131.95,131.92,0.2537109]
[1726445331741,22.5552,131.95,131.92,0.2537109]
[1726445332131,15.7344,131.95,131.92,0.2537109]
[1726445338447,22.5553,131.95,131.92,0.2537109]
[1726445338811,6.8217,131.93,131.92,0.2537109]
[1726445339040,13.3095,131.93,131.92,0.2537109]
[1726445339254,13.3095,131.93,131.89,0.2537109]
[1726445339255,6.8224,131.92,131.89,0.2537109]
[1726445339745,6.8228,131.91,131.89,0.2537109]
[1726445339945,6.8233,131.9,131.89,0.2537109]
[1726445340447,16.6121,131.9,131.85,0.2537109]
[1726445340621,6.8251,131.87,131.85,0.2537109]
[1726445341021,6.4878,131.88,131.85,0.2537109]
[1726445341262,13.3125,131.88,131.85,0.2537109]
[1726445341456,15.1394,131.86,131.85,0.2537109]
[1726445342750,21.9648,131.86,131.81,0.2537109]
[1726445343954,21.9648,131.86,131.81,0.1432122]
[1726445344153,6.826,131.85,131.81,0.1432122]
[1726445344357,15.1394,131.86,131.81,0.1432122]
[1726445345821,6.8259,131.85,131.81,0.1432122]
[1726445346470,21.9648,131.86,131.81,0.1432122]
[1726445347046,15.1394,131.86,131.81,0.1432122]
[1726445348270,307.4,131.89,131.82,52.86169217]
[1726445349360,15.0665,131.9,131.82,52.86169217]
[1726445352469,15.0665,131.9,131.84,23.776884]
[1726445352764,15.0665,131.9,131.82,52.86169217]
[1726445353069,15.0665,131.9,131.84,23.776884]
[1726445353241,15.0665,131.9,131.83,43.776884]
[1726445354277,16.2818,131.93,131.86,23.776884]
[1726445355274,0.1515262,131.94,131.86,30.296884]
[1726445355459,0.1515262,131.94,131.88,23.776884]
[1726445356150,0.1515262,131.94,131.9,23.776884]
[1726445358297,0.1515262,131.94,131.9,39.182584]
[1726445358882,0.1515262,131.94,131.91,20.0]
[1726445359188,0.1515262,131.94,131.92,23.776884]
[1726445361088,0.1515262,131.94,131.91,20.0]
[1726445361697,0.1515262,131.94,131.87,45.01740817]
[1726445361874,0.1515262,131.94,131.89,20.0]
[1726445362075,0.1515262,131.94,131.9,23.776884]
[1726445363402,0.1515262,131.94,131.88,20.0]
[1726445363579,0.1515262,131.94,131.88,43.776884]
[1726445363975,0.1515262,131.94,131.9,23.776884]
[1726445365281,0.1515262,131.94,131.9,20.0]
[1726445365485,0.1515262,131.94,131.88,20.0]
[1726445366589,0.1515262,131.94,131.89,23.776884]
[1726445369299,0.1515262,131.94,131.88,20.0]
[1726445369480,0.1515262,131.94,131.86,6.52]
[1726445369681,0.1515262,131.94,131.87,43.776884]
[1726445371983,0.1515262,131.94,131.87,72.86169217]
[1726445373300,0.1515262,131.94,131.87,43.776884]
[1726445376308,0.1515262,131.94,131.87,72.86169217]
[1726445376509,0.1515262,131.94,131.88,1.51547066]
[1726445376697,0.1515262,131.94,131.87,72.86169217]
[1726445379611,0.1515262,131.94,131.87,43.776884]
[1726445383034,15.1866,131.92,131.82,0.1432122]
[1726445383401,15.1866,131.92,131.82,29.22802037]
[1726445383900,15.1866,131.92,131.82,0.1432122]
[1726445384119,15.1866,131.92,131.82,29.22802037]
[1726445384499,15.1866,131.92,131.84,23.776884]
[1726445386092,15.1866,131.92,131.86,23.776884]
[1726445387492,15.1866,131.92,131.85,20.0]
[1726445387894,15.1866,131.92,131.82,20.1432122]
[1726445388405,15.1866,131.92,131.85,23.776884]
[1726445393812,6.8229,131.91,131.82,20.1432122]
[1726445394214,22.009,131.92,131.83,23.776884]
[1726445394531,22.009,131.92,131.84,20.0]
[1726445396730,22.009,131.92,131.84,38.59597062]
[1726445398233,6.823,131.91,131.84,18.59597062]
[1726445398449,6.823,131.91,131.83,42.37285462]
[1726445401000,22.009,131.92,131.83,42.37285462]
[1726445401202,22.009,131.92,131.84,18.59597062]
[1726445402908,22.009,131.92,131.85,18.59597062]
[1726445403112,15.1866,131.92,131.87,18.59597062]
[1726445404232,15.1866,131.92,131.88,18.59597062]
[1726445404618,15.1866,131.92,131.87,18.59597062]
[1726445406033,15.1866,131.92,131.85,18.59597062]
[1726445407741,15.1866,131.92,131.89,18.59597062]
[1726445407944,15.1866,131.92,131.9,18.59597062]
[1726445408255,15.1866,131.92,131.91,18.59597062]
[1726445409053,15.4783194,131.95,131.91,18.59597062]
[1726445409426,15.4783194,131.95,131.9,18.59597062]
[1726445409751,22.2992194,131.95,131.88,18.59597062]
[1726445410327,22.2992194,131.95,131.87,18.59597062]
[1726445410927,22.2992194,131.95,131.88,18.59597062]
[1726445411626,22.2992194,131.95,131.89,18.59597062]
[1726445411849,15.4783194,131.95,131.89,18.59597062]
[1726445413171,15.4783194,131.95,131.9,42.37285462]
[1726445413453,15.4783194,131.95,131.89,18.59597062]
[1726445413627,15.4783194,131.95,131.88,18.59597062]
[1726445413823,15.4783194,131.95,131.89,23.776884]
[1726445417058,15.4783194,131.95,131.89,42.37285462]
[1726445422952,15.4783194,131.95,131.88,18.59597062]
[1726445424163,15.4783194,131.95,131.89,18.59597062]
[1726445424954,15.4783194,131.95,131.88,18.59597062]
[1726445425153,15.4783194,131.95,131.83,43.776884]
[1726445425369,15.4783194,131.95,131.87,43.776884]
[1726445425659,15.4783194,131.95,131.87,62.37285462]
[1726445426161,6.8216,131.94,131.87,62.37285462]
[1726445426381,6.8216,131.94,131.87,43.776884]
[1726445426554,22.2991194,131.95,131.87,43.776884]
[1726445429479,6.2878,131.92,131.82,6.1042]
[1726445429786,22.0819,131.91,131.83,18.59597062]
[1726445431786,15.259,131.91,131.85,18.59597062]
[1726445431960,15.259,131.91,131.87,18.59597062]
[1726445432974,15.259,131.91,131.86,18.59597062]
[1726445435169,15.259,131.91,131.85,20.0]
[1726445435367,15.259,131.91,131.84,42.37285462]
[1726445435869,15.259,131.91,131.85,18.59597062]
[1726445437690,15.259,131.91,131.86,18.59597062]
[1726445438494,15.259,131.91,131.87,18.59597062]
[1726445439784,15.259,131.91,131.88,18.59597062]
[1726445444887,15.259,131.91,131.87,23.776884]
[1726445445084,15.259,131.91,131.86,18.59597062]
[1726445445908,15.259,131.91,131.87,18.59597062]
[1726445447603,15.259,131.91,131.89,18.59597062]
[1726445447805,15.2299,131.94,131.88,23.776884]
[1726445448113,15.2299,131.94,131.89,18.59597062]
[1726445464513,15.2299,131.94,131.91,18.59597062]
[1726445465016,15.2299,131.94,131.92,18.59597062]
[1726445465315,15.2299,131.94,131.88,23.776884]
[1726445465316,15.2299,131.94,131.89,20.0]
[1726445466346,22.0512,131.94,131.89,20.0]
[1726445467104,22.0512,131.94,131.87,18.59597062]
[1726445467301,6.8218,131.93,131.88,20.0]
[1726445467504,16.5797,131.9,131.81,45.77000191]
[1726445467798,16.5797,131.9,131.84,18.59597062]
[1726445468892,16.5797,131.9,131.85,20.0]
[1726445469096,16.5797,131.9,131.81,0.228165]
[1726445469324,23.4031,131.9,131.82,18.59597062]
[1726445469499,23.4031,131.9,131.83,18.59597062]
[1726445470331,16.5797,131.9,131.84,38.59597062]
[1726445474916,16.5797,131.9,131.84,20.0]
[1726445475115,23.4031,131.9,131.84,20.0]
[1726445476429,16.5797,131.9,131.86,18.59597062]
[1726445476621,16.5797,131.9,131.87,18.59597062]
[1726445476949,16.5797,131.9,131.88,18.59597062]
[1726445477248,16.5797,131.9,131.87,18.59597062]
[1726445477539,16.5797,131.9,131.81,0.228165]
[1726445477746,23.4035,131.9,131.84,20.0]
[1726445480747,23.4035,131.9,131.81,20.228165]
[1726445480931,23.4035,131.9,131.83,20.0]
[1726445481432,23.4035,131.9,131.83,38.59597062]
[1726445483256,23.4035,131.9,131.81,0.228165]
[1726445483257,16.5797,131.9,131.86,18.59597062]
[1726445486631,16.5797,131.9,131.87,18.59597062]
[1726445487138,16.5797,131.9,131.86,18.59597062]
[1726445488959,16.5797,131.9,131.87,18.59597062]
[1726445489254,16.5797,131.9,131.89,18.59597062]
[1726445489439,16.5797,131.9,131.88,18.59597062]
[1726445490157,16.5797,131.9,131.87,42.37285462]
[1726445490333,16.5797,131.9,131.87,18.59597062]
[1726445491557,16.5797,131.9,131.86,18.59597062]
[1726445492058,16.5797,131.9,131.83,20.0]
[1726445492267,16.5797,131.9,131.86,18.59597062]
[1726445492634,16.5797,131.9,131.87,18.59597062]
[1726445492851,16.5797,131.9,131.88,18.59597062]
[1726445493459,16.5797,131.9,131.87,18.59597062]
[1726445493663,16.5797,131.9,131.86,18.59597062]
[1726445494362,16.5797,131.9,131.87,18.59597062]
[1726445496055,16.5797,131.9,131.86,18.59597062]
[1726445501267,16.5797,131.9,131.86,20.0]
[1726445501465,23.4031,131.9,131.84,20.0]
[1726445503262,23.4031,131.9,131.81,0.228165]
[1726445503565,23.4031,131.9,131.84,20.0]
[1726445504488,23.4031,131.9,131.81,0.228165]
[1726445504489,16.5797,131.9,131.81,38.82413562]
[1726445504690,6.8249,131.87,131.81,0.228165]
[1726445504997,21.7139,131.86,131.81,0.228165]
[1726445505866,21.7139,131.86,131.81,20.228165]
[1726445506296,21.7139,131.86,131.81,38.82413562]
[1726445506505,21.7139,131.86,131.82,18.59597062]
[1726445506671,21.7139,131.86,131.84,18.59597062]
[1726445506873,15.7048,131.86,131.84,18.59597062]
[1726445507398,15.7048,131.86,131.85,18.59597062]
[1726445508593,15.7048,131.86,131.84,18.59597062]
[1726445509793,16.2105,131.89,131.84,18.59597062]
[1726445510093,16.2105,131.89,131.85,18.59597062]
[1726445512371,16.2105,131.89,131.86,18.59597062]
[1726445514287,16.2105,131.89,131.85,18.59597062]
[1726445516272,16.2105,131.89,131.84,42.37285462]
[1726445516990,16.2105,131.89,131.85,18.59597062]
[1726445517208,16.2105,131.89,131.86,18.59597062]
[1726445517565,16.2105,131.89,131.87,18.59597062]
[1726445517771,16.2834,131.92,131.88,18.59597062]
[1726445518008,16.2834,131.92,131.86,18.59597062]
[1726445518170,16.2834,131.92,131.85,38.59597062]
[1726445519173,16.2834,131.92,131.86,18.59597062]
[1726445519480,23.1057,131.92,131.86,18.59597062]
[1726445522188,23.1057,131.92,131.85,38.59597062]
[1726445523273,6.8234,131.9,131.84,18.59597062]
[1726445523478,29.5003,131.89,131.84,20.0]
[1726445524703,29.5003,131.89,131.82,18.59597062]
[1726445524880,6.8249,131.87,131.81,0.228165]
[1726445525080,16.5745,131.86,131.81,0.228165]
[1726445525279,13.4599,131.83,131.81,0.228165]
[1726445525488,6.6329,131.83,131.81,0.228165]
[1726445529691,15.9237,131.82,131.77,0.2564922]
[1726445529905,6.8284,131.81,131.77,0.2564922]
[1726445530106,15.9237,131.82,131.77,0.2564922]
[1726445530316,6.8295,131.78,131.77,0.2564922]
[1726445531020,6.829,131.79,131.77,0.2564922]
[1726445532808,6.8285,131.8,131.77,0.2564922]
[1726445536501,6.828,131.81,131.77,0.2564922]
[1726445537225,15.9237,131.82,131.77,0.2564922]
[1726445537414,22.7513,131.82,131.77,0.2564922]
[1726445537600,6.8284,131.81,131.77,0.2564922]
[1726445539829,6.8285,131.8,131.77,0.2564922]
[1726445540910,6.8295,131.78,131.77,0.2564922]
[1726445544915,28.7148,131.78,131.77,0.2564922]
[1726445547926,125.271684,131.78,131.77,0.2564922]
[1726445548408,125.271684,131.78,131.73,0.2564922]
[1726445548409,118.442184,131.78,131.73,0.2564922]
[1726445548630,46.556884,131.77,131.73,0.2564922]
[1726445548834,6.8316,131.74,131.73,0.2564922]
[1726445551633,45.4198,131.74,131.73,0.2564922]
[1726445551838,45.4198,131.74,131.69,0.2564922]
[1726445551839,6.8337,131.7,131.69,0.2564922]
[1726445552502,6.8333,131.71,131.69,0.2564922]
[1726445554331,6.8337,131.7,131.69,0.2564922]
[1726445555233,118.513784,131.7,131.69,0.2564922]
[1726445560052,6.8357,131.66,131.65,0.2564922]
[1726445560349,6.8352,131.68,131.65,0.2564922]
[1726445561120,6.8352,131.68,131.65,0.1576706]
[1726445561516,6.8354,131.67,131.65,0.1576706]
[1726445561721,6.8357,131.66,131.65,0.1576706]
[1726445563926,6.8354,131.67,131.65,0.1576706]
[1726445568043,6.8357,131.66,131.65,0.1576706]
[1726445570950,6.8373,131.63,131.62,0.30815]
[1726445572560,80.614184,131.63,131.62,0.30815]
[1726445574543,30.614184,131.63,131.62,0.30815]
[1726445574745,6.8373,131.63,131.62,0.30815]
[1726445575156,72.7694,131.65,131.62,0.30815]
[1726445575343,6.8361,131.66,131.62,0.30815]
[1726445576364,6.8353,131.67,131.62,0.30815]
[1726445576652,6.8347,131.68,131.62,18.90412062]
[1726445576856,6.8343,131.69,131.62,0.30815]
[1726445577163,17.46732907,131.72,131.63,18.59597062]
[1726445577529,6.8342,131.7,131.63,18.59597062]
[1726445577964,6.8343,131.69,131.62,0.30815]
[1726445578464,6.8352,131.67,131.62,0.30815]
[1726445579441,6.8359,131.66,131.62,0.30815]
[1726445579926,6.8363,131.65,131.62,0.30815]
[1726445580853,6.8371,131.64,131.62,0.30815]
[1726445583161,6.8364,131.65,131.62,0.30815]
[1726445583966,6.8368,131.64,131.62,0.30815]
[1726445584341,6.8373,131.63,131.62,0.30815]
[1726445585662,6.8369,131.64,131.62,0.30815]
[1726445585977,6.8373,131.63,131.62,0.30815]
[1726445587560,30.614184,131.63,131.62,0.30815]
[1726445588059,6.8373,131.63,131.62,0.30815]
[1726445588760,30.614184,131.63,131.62,0.30815]
[1726445590663,6.8373,131.63,131.62,0.30815]
[1726445592741,39.1594,131.67,131.62,0.30815]
[1726445592948,6.8362,131.66,131.62,0.30815]
[1726445593163,6.8365,131.65,131.62,0.30815]
[1726445594656,8.89970347,131.64,131.62,0.30815]
[1726445594859,6.8365,131.65,131.62,0.30815]
[1726445595059,8.89446438,131.64,131.62,0.30815]
[1726445595280,8.89446438,131.63,131.62,0.30815]
[1726445595471,8.89334801,131.63,131.62,0.30815]
[1726445595771,6.8358,131.66,131.62,0.30815]
[1726445598973,6.8353,131.67,131.62,0.30815]
[1726445599277,6.8358,131.66,131.62,0.30815]
[1726445609897,6.8373,131.63,131.62,0.30815]
[1726445611505,6.8371,131.64,131.62,0.30815]
[1726445613291,6.8373,131.63,131.62,0.30815]
[1726445615205,80.614184,131.63,131.62,0.30815]
[1726445615410,6.8395,131.59,131.57,0.1163]
[1726445617309,6.839,131.6,131.57,0.1163]
[1726445619028,6.8396,131.59,131.57,0.1163]
[1726445620217,6.839,131.6,131.57,0.1163]
[1726445620711,6.8399,131.58,131.57,0.1163]
[1726445621593,6.8399,131.58,131.48,0.30815]
[1726445621594,50.0,131.56,131.52,0.2577419]
[1726445621918,50.0,131.56,131.52,0.3532937]
[1726445622622,6.842,131.54,131.52,0.3532937]
[1726445623024,6.8416,131.55,131.52,0.3532937]
[1726445623315,15.3002,131.6,131.52,0.3532937]
[1726445623518,65.3002,131.6,131.52,0.3532937]
[1726445624112,6.8409,131.57,131.52,0.3532937]
[1726445627223,6.841,131.56,131.52,0.3532937]
[1726445627928,6.8421,131.54,131.52,0.3532937]
[1726445628222,6.8425,131.53,131.52,0.3532937]
[1726445629309,105.2577,131.6,131.52,0.3532937]
[1726445629625,6.8411,131.56,131.52,0.3532937]
[1726445630214,6.8404,131.57,131.52,0.3532937]
[1726445630411,15.3002,131.6,131.53,18.66524138]
[1726445630608,6.8384,131.61,131.55,18.66524138]
[1726445630806,1.3240155,131.64,131.57,18.66524138]
[1726445631122,6.8372,131.64,131.57,41.57564138]
[1726445631326,6.8373,131.63,131.57,41.57564138]
[1726445631584,6.8373,131.63,131.57,22.9104]
[1726445634813,6.8379,131.62,131.57,22.9104]
[1726445635198,79.1699901,131.66,131.57,22.9104]
[1726445635419,6.8384,131.61,131.57,22.9104]
[1726445638542,50.1621901,131.66,131.57,52.08685236]
[1726445638739,6.8374,131.63,131.57,52.08685236]
[1726445639425,6.8368,131.64,131.57,52.08685236]
[1726445639838,6.8363,131.65,131.57,52.08685236]
[1726445640055,6.8368,131.64,131.58,23.776884]
[1726445640549,6.8364,131.65,131.58,23.776884]
[1726445640720,6.8373,131.63,131.58,23.776884]
[1726445641034,6.8369,131.64,131.58,52.95333636]
[1726445644452,6.8374,131.63,131.57,22.9104]
[1726445644629,0.1621901,131.66,131.57,22.9104]
[1726445644630,90.1122901,131.66,131.57,22.9104]
[1726445645049,6.838,131.62,131.57,22.9104]
[1726445645348,6.8374,131.63,131.57,22.9104]
[1726445646761,6.838,131.62,131.57,22.9104]
[1726445647949,6.8374,131.63,131.57,22.9104]
[1726445649053,6.8369,131.64,131.57,22.9104]
[1726445649230,6.8374,131.63,131.57,22.9104]
[1726445650549,6.8369,131.64,131.57,22.9104]
[1726445651376,90.1122901,131.66,131.57,22.9104]
[1726445651542,23.776884,131.65,131.57,22.9104]
[1726445652050,6.8383,131.62,131.57,22.9104]
[1726445652246,6.8386,131.61,131.57,22.9104]
[1726445652575,6.8389,131.6,131.57,22.9104]
[1726445653971,6.8382,131.62,131.57,22.9104]
[1726445654192,6.8369,131.64,131.58,29.17645236]
[1726445654377,6.8369,131.64,131.57,22.9104]
[1726445654577,6.8369,131.64,131.58,23.776884]
[1726445654875,0.1621901,131.66,131.58,25.29538759]
[1726445655177,0.1621901,131.66,131.62,22.4919]
[1726445657551,0.1621901,131.66,131.62,41.15221918]
[1726445657962,0.1621901,131.66,131.64,18.66031918]
[1726445658176,0.1621901,131.66,131.62,22.4919]
[1726445658177,0.1621901,131.66,131.65,18.66031918]
[1726445659368,0.1621901,131.66,131.64,18.66031918]
[1726445661483,0.1621901,131.66,131.63,18.66031918]
[1726445661869,0.1621901,131.66,131.63,20.0]
[1726445664378,0.1621901,131.66,131.63,38.66031918]
[1726445664962,0.1621901,131.66,131.62,22.4919]
[1726445665161,0.1621901,131.66,131.62,41.15221918]
[1726445667787,0.1621901,131.66,131.62,22.4919]
[1726445669669,6.9979901,131.66,131.62,22.4919]
[1726445670491,6.9979901,131.66,131.6,18.66031918]
[1726445670676,6.9979901,131.66,131.61,20.0]
[1726445670861,6.9979901,131.66,131.6,23.776884]
[1726445671176,6.8363,131.65,131.59,22.0805]
[1726445671881,6.9980901,131.66,131.59,22.0805]
[1726445672174,6.9980901,131.66,131.59,40.74081918]
[1726445674580,6.9980901,131.66,131.6,42.43720318]
[1726445674581,0.1621901,131.66,131.6,42.43720318]
[1726445676298,0.1621901,131.66,131.6,23.776884]
[1726445676499,6.9980901,131.66,131.6,23.776884]
[1726445679716,0.1621901,131.66,131.6,42.43720318]
[1726445681585,6.9979901,131.66,131.6,42.43720318]
[1726445683181,6.8363,131.65,131.59,22.0805]
[1726445683385,6.8369,131.64,131.59,20.0]
[1726445683703,16.6262,131.64,131.56,0.0955518]
[1726445683887,6.8384,131.61,131.56,0.0955518]
[1726445684219,6.8374,131.63,131.57,18.66031918]
[1726445684773,6.8374,131.63,131.56,18.75587098]
[1726445685010,16.6262,131.64,131.56,18.75587098]
[1726445685011,23.4631,131.64,131.56,18.75587098]
[1726445685309,6.8374,131.63,131.56,18.75587098]
[1726445685810,6.8374,131.63,131.57,23.776884]
[1726445685999,6.8379,131.62,131.56,43.8724358]
[1726445686376,6.8387,131.61,131.56,20.0955518]
[1726445686624,16.6262,131.64,131.56,0.0955518]
[1726445686811,16.6262,131.64,131.56,20.0955518]
[1726445687389,6.8391,131.6,131.56,20.0955518]
[1726445687811,6.8391,131.6,131.56,0.0955518]
[1726445688041,6.8396,131.59,131.56,0.0955518]
[1726445688396,15.9186,131.59,131.56,0.0955518]
[1726445688596,6.8404,131.57,131.56,0.0955518]
[1726445689129,6.8423,131.54,131.52,0.2577419]
[1726445690097,6.8416,131.55,131.52,0.2577419]
[1726445691520,6.841,131.56,131.52,0.2577419]
[1726445692398,6.8405,131.57,131.52,0.2577419]
[1726445693524,6.841,131.56,131.52,0.2577419]
[1726445696302,6.8416,131.55,131.52,0.2577419]
[1726445696909,6.842,131.54,131.52,0.2577419]
[1726445697504,6.8425,131.53,131.52,0.2577419]
[1726445697904,22.4951,131.53,131.52,0.2577419]
[1726445700542,15.6526,131.53,131.52,0.2577419]
[1726445700738,15.3919,131.56,131.52,0.2577419]
[1726445701545,6.842,131.54,131.52,0.2577419]
[1726445702041,6.8421,131.54,131.52,0.2577419]
[1726445702831,6.8415,131.55,131.52,0.2577419]
[1726445703545,15.3919,131.56,131.52,0.2577419]
[1726445703710,6.8424,131.54,131.52,0.2577419]
[1726445704645,46.5847,131.59,131.52,0.2577419]
[1726445704646,6.6256,131.59,131.52,0.2577419]
[1726445704951,22.2744,131.59,131.52,0.2577419]
[1726445705233,29.1142,131.59,131.52,0.2577419]
[1726445705436,6.84,131.58,131.52,0.2577419]
[1726445706139,6.8404,131.57,131.52,0.2577419]
[1726445706448,6.8415,131.55,131.52,0.2577419]
[1726445706735,6.841,131.56,131.52,0.2577419]
[1726445708024,6.8405,131.57,131.52,0.2577419]
[1726445708221,15.6488,131.59,131.52,1.77696524]
[1726445708537,21.4629,131.63,131.54,20.0]
[1726445708734,15.0362,131.63,131.56,6.4605]
[1726445708940,21.8736,131.63,131.57,23.776884]
[1726445709116,6.8369,131.64,131.57,25.29594565]
[1726445709315,65.2939419,131.66,131.57,23.776884]
[1726445709515,6.8378,131.62,131.57,23.776884]
[1726445710238,6.8384,131.61,131.56,6.4605]
[1726445710452,6.8389,131.6,131.56,6.4605]
[1726445710637,23.776884,131.65,131.56,6.4605]
[1726445711235,6.8385,131.61,131.56,6.4605]
[1726445711747,82.3841419,131.66,131.56,6.4605]
[1726445711927,23.776884,131.65,131.56,6.4605]
[1726445712426,6.8385,131.61,131.56,6.4605]
[1726445712828,82.3841419,131.66,131.56,7.33592761]
[1726445713055,82.3841419,131.66,131.56,6.4605]
[1726445713346,82.3841419,131.66,131.57,23.776884]
[1726445713347,0.2577419,131.66,131.57,23.776884]
[1726445713652,0.2577419,131.66,131.59,23.776884]
[1726445714434,6.8366,131.65,131.59,23.776884]
[1726445714636,7.0935419,131.66,131.59,23.776884]
[1726445715872,0.2577419,131.66,131.6,20.0]
[1726445716148,0.2577419,131.66,131.61,25.29612151]
[1726445716377,0.2577419,131.66,131.62,1.51921532]
[1726445716527,0.2577419,131.66,131.63,23.776884]
[1726445716725,0.2577419,131.66,131.63,31.71404679]
[1726445717156,0.2577419,131.66,131.63,30.194984]
[1726445719852,0.2577419,131.66,131.65,43.776884]
[1726445720444,0.2577419,131.66,131.63,6.4181]
[1726445720646,0.2577419,131.66,131.64,20.0]
[1726445720852,0.2577419,131.66,131.63,6.4181]
[1726445723840,0.2577419,131.66,131.61,16.2415]
[1726445725061,0.2577419,131.66,131.62,23.776884]
[1726445728668,0.2577419,131.66,131.61,16.2415]
[1726445730375,0.2577419,131.66,131.62,23.776884]
[1726445733081,0.2577419,131.66,131.63,20.0]
[1726445733263,0.2577419,131.66,131.64,23.776884]
[1726445733459,0.2577419,131.66,131.65,1.51883112]
[1726445733691,0.2577419,131.66,131.65,25.29571512]
[1726445734055,0.2577419,131.66,131.65,43.776884]
[1726445734283,0.2577419,131.66,131.63,20.0]
[1726445735380,0.2577419,131.66,131.64,23.776884]
[1726445735756,0.2577419,131.66,131.65,25.29578033]
[1726445737162,0.2577419,131.66,131.64,23.776884]
[1726445741787,0.2577419,131.66,131.65,20.0]
[1726445741976,0.2577419,131.66,131.65,23.776884]
[1726445742164,0.2577419,131.66,131.65,43.776884]
[1726445742353,0.2577419,131.66,131.65,50.084484]
[1726445742552,0.2577419,131.66,131.65,65.730984]
[1726445742776,0.2577419,131.7,131.66,43.776884]
[1726445742975,0.2577419,131.7,131.69,43.776884]
[1726445745871,0.2577419,131.7,131.66,43.776884]
[1726445746089,0.2577419,131.7,131.66,20.0]
[1726445747403,0.2577419,131.7,131.67,23.776884]
[1726445751273,0.2577419,131.7,131.69,43.776884]
[1726445752069,0.2577419,131.7,131.69,45.29487934]
[1726445752713,0.2577419,131.74,131.69,45.29487934]
[1726445752867,0.2577419,131.74,131.67,39.22123421]
[1726445752868,0.2577419,131.74,131.72,20.0]
[1726445753396,0.2577419,131.74,131.7,20.0]
[1726445753571,0.2577419,131.74,131.7,43.776884]
[1726445753768,0.2577419,131.74,131.72,23.776884]
[1726445756179,0.2577419,131.74,131.73,20.0]
[1726445756484,0.2577419,131.74,131.73,43.776884]
[1726445756787,0.2577419,131.74,131.73,72.99811821]
[1726445762267,0.2577419,131.74,131.69,29.22123421]
[1726445763595,0.2577419,131.74,131.68,20.0]
[1726445765300,0.2577419,131.74,131.7,20.0]
[1726445768302,0.2577419,131.74,131.68,23.776884]
[1726445769514,0.2577419,131.74,131.69,21.51839584]
[1726445769678,0.2577419,131.74,131.7,23.776884]
[1726445770489,7.0895419,131.74,131.66,20.0]
[1726445770685,6.8321,131.73,131.66,20.0]
[1726445770912,6.8327,131.72,131.63,50.70583421]
[1726445771211,15.1878,131.71,131.6,52.14257611]
[1726445771382,6.8348,131.68,131.6,52.14257611]
[1726445771723,6.8348,131.68,131.6,22.9213419]
[1726445771884,6.8342,131.69,131.6,22.9213419]
[1726445772210,15.1878,131.71,131.6,52.14257611]
[1726445772420,22.0211,131.71,131.63,20.0]
[1726445772582,15.1878,131.71,131.64,23.776884]
[1726445773006,15.1878,131.71,131.65,20.0]
[1726445773393,15.1878,131.71,131.66,23.776884]
[1726445775400,6.8337,131.7,131.65,20.0]